bitfinex/quotes_ETHUSD_20241003
["timestamp","ask_amount","ask_price","bid_price","bid_amount"]
[1727947535600,0.7922,2352.9,2352.5,4.25078]
[1727947535953,5.04155,2353.3,2352.7,4.25034]
[1727947536237,5.04155,2353.3,2352.6,4.2505]
[1727947536238,4.24961,2353.2,2352.6,4.2505]
[1727947536444,4.24983,2353.1,2352.4,4.25097]
[1727947536613,4.24983,2353.1,2352.3,0.7576]
[1727947536614,4.19983,2353.1,2352.6,4.25048]
[1727947536813,4.25065,2352.6,2352.1,4.25135]
[1727947537075,4.25108,2352.4,2352.0,1.482787]
[1727947537322,4.25081,2352.5,2352.0,0.725187]
[1727947537501,4.25116,2352.3,2352.0,0.725187]
[1727947538015,4.25134,2352.2,2351.7,0.7576]
[1727947538199,4.25179,2352.0,2351.5,8.50501]
[1727947538400,0.7922,2352.1,2351.5,4.25259]
[1727947538644,0.7922,2352.1,2351.6,4.753359]
[1727947538858,0.7922,2352.4,2352.0,4.25161]
[1727947539003,4.2508,2352.5,2352.0,0.7576]
[1727947539338,4.2508,2352.5,2352.0,1.182761]
[1727947540247,6.575643,2353.0,2351.6,1.298719]
[1727947540248,4.25154,2352.1,2351.6,1.298719]
[1727947540432,4.25224,2351.8,2351.3,0.7977]
[1727947540753,4.2518,2352.0,2351.5,4.25259]
[1727947540898,0.8182,2352.1,2351.5,4.25259]
[1727947540899,0.8182,2352.1,2351.5,4.25249]
[1727947541101,5.06974,2352.1,2351.6,4.25241]
[1727947541302,4.25146,2352.2,2351.5,4.757509]
[1727947541303,4.25143,2352.2,2351.7,4.25223]
[1727947541543,7.393843,2352.4,2351.8,0.425223]
[1727947541846,5.0692,2352.4,2351.9,4.25178]
[1727947542141,5.0692,2352.4,2351.9,8.50356]
[1727947542456,0.8182,2352.4,2351.9,4.25178]
[1727947542653,0.8182,2352.4,2351.9,4.756228]
[1727947542869,5.08279,2352.7,2352.1,4.25136]
[1727947543157,5.08279,2352.7,2351.9,0.504448]
[1727947543158,0.8322,2352.7,2351.9,0.504448]
[1727947543453,4.25108,2352.4,2352.0,4.25167]
[1727947544247,4.25108,2352.4,2351.9,8.50358]
[1727947544429,4.25107,2352.4,2352.0,0.929628]
[1727947544659,4.25073,2352.6,2352.0,4.25169]
[1727947544947,4.25073,2352.6,2352.1,0.425169]
[1727947544948,4.2508,2352.5,2352.1,0.425169]
[1727947545354,4.25098,2352.4,2352.1,0.425169]
[1727947545650,4.25069,2352.6,2352.2,4.25124]
[1727947545856,4.25069,2352.6,2352.3,0.4676409]
[1727947546606,4.25041,2352.8,2352.3,0.4676409]
[1727947546857,4.25074,2352.6,2351.9,0.8131]
[1727947547145,4.25089,2352.5,2352.0,8.50313]
[1727947547347,4.25074,2352.6,2352.1,0.931623]
[1727947547553,4.25043,2352.8,2352.3,4.25104]
[1727947547762,4.25043,2352.8,2352.4,0.850221]
[1727947548116,4.25009,2352.9,2352.4,5.06227]
[1727947548539,23.035113,2353.3,2352.4,0.8114]
[1727947548540,4.24983,2353.1,2352.4,0.8114]
[1727947548745,4.25033,2352.8,2352.4,5.568643]
[1727947549292,4.2502,2352.9,2352.4,5.568643]
[1727947549569,4.25064,2352.6,2352.1,0.7863]
[1727947549787,4.25064,2352.6,2352.1,5.03778]
[1727947549932,4.25064,2352.6,2352.1,0.7863]
[1727947549933,4.25093,2352.5,2352.1,0.7863]
[1727947550141,4.25093,2352.5,2352.1,1.290114]
[1727947550675,4.25093,2352.5,2352.1,5.541614]
[1727947550895,4.25064,2352.6,2352.2,4.25133]
[1727947551059,4.25064,2352.6,2352.3,0.5541444]
[1727947551589,0.8315,2352.8,2352.1,1.290114]
[1727947551590,4.25097,2352.4,2352.1,1.290114]
[1727947551795,4.25097,2352.4,2352.1,0.7863]
[1727947552015,4.25069,2352.6,2352.1,5.03764]
[1727947552294,8.50038,2352.9,2352.4,4.25088]
[1727947552506,4.25029,2352.8,2352.4,5.101079]
[1727947552790,4.25,2353.0,2352.5,4.25061]
[1727947553151,4.25,2353.0,2352.6,5.07904]
[1727947553864,4.24985,2353.1,2352.7,4.25042]
[1727947554066,4.24985,2353.1,2352.7,0.932946]
[1727947554393,4.24956,2353.2,2352.7,5.183256]
[1727947554558,4.24956,2353.2,2352.8,4.25022]
[1727947555097,4.24976,2353.1,2352.6,0.8285]
[1727947555304,5.04233,2353.4,2352.8,4.25023]
[1727947555456,4.24943,2353.3,2352.9,4.25004]
[1727947555657,4.24943,2353.3,2352.8,4.25016]
[1727947556053,5.04233,2353.4,2352.8,4.25016]
[1727947556301,4.24923,2353.4,2352.9,4.24999]
[1727947556507,4.24943,2353.3,2352.9,4.24999]
[1727947556804,4.24979,2353.1,2352.6,5.07896]
[1727947557179,4.24966,2353.2,2352.7,4.25031]
[1727947557689,4.24924,2353.4,2352.8,4.25024]
[1727947557886,5.06247,2353.6,2353.1,4.24959]
[1727947558074,4.24897,2353.6,2353.1,4.24958]
[1727947558274,4.24897,2353.6,2352.9,0.7866]
[1727947558275,4.24908,2353.5,2352.9,5.03659]
[1727947558601,4.24937,2353.3,2352.9,5.03664]
[1727947559261,4.24924,2353.4,2353.0,4.24988]
[1727947559461,8.49828,2353.5,2352.9,0.7866]
[1727947559663,4.24913,2353.5,2353.0,4.24981]
[1727947559864,4.24927,2353.4,2353.0,4.24981]
[1727947560104,4.24913,2353.5,2353.0,4.24981]
[1727947560105,4.24913,2353.5,2353.1,4.24968]
[1727947560492,4.24913,2353.5,2353.0,4.24978]
[1727947560703,4.2496,2353.2,2352.9,0.7866]
[1727947561009,8.49881,2353.3,2352.9,5.03665]
[1727947561213,4.24936,2353.3,2352.9,5.03665]
[1727947561766,4.24956,2353.2,2352.9,0.7866]
[1727947562217,4.24936,2353.3,2352.9,5.03666]
[1727947562416,4.24914,2353.5,2353.0,4.24974]
[1727947562719,4.24949,2353.3,2352.9,0.7866]
[1727947562921,8.499,2353.3,2352.9,0.7866]
[1727947563070,4.24949,2353.3,2352.9,0.7866]
[1727947563264,4.24949,2353.3,2348.1,10.0]
[1727947563265,4.24984,2353.1,2352.6,0.8027]
[1727947563511,4.24984,2353.1,2352.0,3.0]
[1727947563512,4.25043,2352.7,2352.4,0.8027]
[1727947563743,4.25071,2352.6,2352.4,0.8027]
[1727947563931,4.25042,2352.8,2352.1,4.25139]
[1727947564158,4.25056,2352.7,2352.0,0.7669]
[1727947564337,0.7513,2352.4,2351.8,0.7669]
[1727947564681,4.25251,2351.6,2351.1,5.08304]
[1727947564835,4.2527,2351.5,2351.1,0.8298]
[1727947565164,4.25242,2351.6,2351.1,5.08302]
[1727947565345,0.8319,2351.8,2351.1,5.08302]
[1727947565346,0.8319,2351.8,2351.1,0.8298]
[1727947565507,5.01399331,2352.5,2351.3,8.50571]
[1727947565508,4.25171,2352.0,2351.3,8.50571]
[1727947565711,4.25171,2352.0,2351.1,1.3907693]
[1727947565712,4.25233,2351.7,2351.2,4.25305]
[1727947565960,4.25233,2351.7,2351.3,4.25289]
[1727947566177,4.25198,2351.9,2351.4,4.25263]
[1727947566319,5.05026,2352.1,2351.5,4.25258]
[1727947566320,4.25171,2352.0,2351.5,4.25258]
[1727947566516,4.25206,2351.9,2351.3,4.25283]
[1727947566946,4.25207,2351.8,2351.3,8.5057]
[1727947567214,4.25207,2351.8,2351.3,4.25283]
[1727947567424,4.25206,2351.9,2351.4,4.25276]
[1727947567425,8.50412,2351.9,2351.4,4.25276]
[1727947567595,4.25214,2351.8,2351.3,4.25283]
[1727947568103,4.25189,2351.9,2351.5,4.25258]
[1727947568977,4.25189,2351.9,2351.3,4.25291]
[1727947569310,4.25225,2351.7,2351.1,5.08301]
[1727947569491,4.2527,2351.5,2351.1,0.8298]
[1727947569664,4.25308,2351.3,2350.8,0.8072]
[1727947569868,5.01399331,2351.9,2350.2,4.25485]
[1727947569869,4.25362,2351.0,2350.5,0.8278]
[1727947570065,4.25394,2350.8,2350.5,0.8278]
[1727947570263,4.25394,2350.8,2350.2,5.08262]
[1727947570464,4.25362,2351.0,2350.2,0.8278]
[1727947570695,9.32909,2351.2,2350.7,4.25394]
[1727947570907,5.07581,2351.2,2350.7,4.25394]
[1727947571311,4.25191,2351.9,2350.8,4.25385]
[1727947571312,5.03038,2351.5,2350.8,4.25385]
[1727947571493,4.25298,2351.3,2350.8,8.50759]
[1727947571801,4.25298,2351.3,2350.9,4.25362]
[1727947572100,4.2528,2351.4,2350.9,4.25362]
[1727947572317,5.03038,2351.5,2350.6,5.01604]
[1727947572318,0.7776,2351.5,2350.6,5.01604]
[1727947572489,4.25334,2351.1,2350.6,9.27017]
[1727947572829,4.25334,2351.1,2350.6,5.01603]
[1727947573189,4.2536,2351.0,2350.6,0.7619]
[1727947573388,4.25298,2351.3,2350.8,4.25378]
[1727947573846,4.25298,2351.3,2350.6,0.7619]
[1727947573847,0.7776,2351.5,2350.6,0.7619]
[1727947574129,4.25315,2351.2,2350.6,5.01611]
[1727947574283,4.25343,2351.1,2350.7,4.25404]
[1727947574485,4.25343,2351.1,2350.6,0.7619]
[1727947574486,4.25343,2351.1,2350.6,5.01611]
[1727947574731,8.50687,2351.1,2350.6,5.01611]
[1727947574922,4.25343,2351.1,2350.6,0.7619]
[1727947575125,4.25343,2351.1,2350.7,4.25402]
[1727947575333,4.25343,2351.1,2350.6,9.27011]
[1727947575487,8.50687,2351.1,2350.6,5.01598]
[1727947575687,4.25343,2351.1,2350.6,5.01598]
[1727947576438,4.25342,2351.1,2350.6,5.01598]
[1727947576658,4.25351,2351.0,2350.6,0.7619]
[1727947576931,4.25342,2351.1,2350.7,4.25403]
[1727947577513,5.03036,2351.5,2351.0,4.25348]
[1727947577835,10.828033,2351.7,2351.3,4.2529]
[1727947577988,4.252,2351.9,2351.4,4.25269]
[1727947578192,4.252,2351.9,2351.5,4.25258]
[1727947578431,0.8306,2352.1,2351.2,9.3255]
[1727947578586,4.25175,2352.0,2351.4,4.25268]
[1727947578790,4.2519,2351.9,2351.5,4.25259]
[1727947579099,0.8306,2352.1,2351.3,4.25293]
[1727947579100,4.25217,2351.8,2351.3,4.25293]
[1727947579303,4.25217,2351.8,2351.2,5.0725]
[1727947579304,4.25182,2352.0,2351.4,4.25277]
[1727947579656,4.25189,2351.9,2351.4,8.50548]
[1727947579793,4.25168,2352.1,2351.7,4.25222]
[1727947579996,4.25141,2352.2,2351.0,3.0]
[1727947579997,7.337643,2352.4,2351.3,5.00718]
[1727947580338,4.25215,2351.8,2351.4,4.25278]
[1727947580850,4.25164,2352.1,2351.4,4.2527]
[1727947581135,4.2521,2351.8,2351.3,8.00718]
[1727947581630,4.2521,2351.8,2351.4,4.25277]
[1727947582136,4.25225,2351.7,2351.3,8.00716]
[1727947582376,4.25288,2351.4,2351.0,0.8127]
[1727947582746,0.7538,2351.8,2351.0,0.8127]
[1727947582951,4.25269,2351.5,2351.0,5.06608]
[1727947583766,4.2528,2351.4,2351.0,5.06608]
[1727947584669,4.2528,2351.4,2351.0,0.8127]
[1727947584834,4.25257,2351.6,2351.0,5.06619]
[1727947585038,4.2526,2351.5,2351.0,5.06619]
[1727947585990,4.25281,2351.4,2351.0,5.06619]
[1727947586510,8.50532,2351.5,2351.0,5.06619]
[1727947586670,4.2526,2351.5,2351.0,5.06619]
[1727947587000,4.2526,2351.5,2351.0,0.8127]
[1727947587217,4.25288,2351.4,2351.0,5.06616]
[1727947587657,8.50533,2351.5,2351.0,9.31958]
[1727947587855,8.5053,2351.5,2351.1,4.2533]
[1727947588173,8.5053,2351.5,2351.0,5.06611]
[1727947588516,4.25279,2351.4,2351.0,0.8127]
[1727947588669,4.25237,2351.7,2351.0,5.06606]
[1727947588867,4.25263,2351.5,2351.0,5.06606]
[1727947589068,4.25278,2351.4,2351.0,5.06606]
[1727947589389,5.0059,2351.8,2351.0,5.06606]
[1727947589390,4.25241,2351.7,2351.0,5.06606]
[1727947589594,4.25262,2351.5,2351.1,4.25331]
[1727947590798,4.25264,2351.5,2351.1,4.2533]
[1727947591170,4.25264,2351.5,2351.0,5.06606]
[1727947591372,0.7538,2351.8,2350.7,5.02458]
[1727947591373,4.25331,2351.2,2350.7,5.02458]
[1727947591572,4.25342,2351.1,2350.7,0.7706]
[1727947591899,0.7698,2351.3,2350.2,4.25486]
[1727947591900,4.25388,2350.8,2350.4,4.2545]
[1727947592325,4.25406,2350.7,2350.2,4.25478]
[1727947592611,4.25406,2350.7,2350.3,4.25476]
[1727947592755,4.2538,2350.9,2350.5,4.25441]
[1727947593079,4.2538,2350.9,2350.1,0.7706]
[1727947593246,4.2539,2350.8,2350.4,4.25451]
[1727947594654,4.2539,2350.8,2350.2,4.25479]
[1727947594655,4.25415,2350.7,2350.3,4.25476]
[1727947595196,4.25357,2351.0,2350.5,4.25426]
[1727947595398,5.01399331,2351.7,2350.2,4.25492]
[1727947595601,4.25289,2351.4,2351.0,4.2535]
[1727947596269,8.5058,2351.4,2350.9,8.50716]
[1727947596467,4.2522,2351.8,2350.7,4.25397]
[1727947596468,4.25328,2351.2,2350.7,4.25397]
[1727947596653,4.25328,2351.2,2350.8,4.25386]
[1727947597203,4.25301,2351.3,2350.9,4.25364]
[1727947597351,4.25301,2351.3,2350.8,8.50761]
[1727947597549,4.25315,2351.2,2350.8,4.25375]
[1727947598108,4.25394,2350.8,2350.3,7.25465]
[1727947598605,4.25394,2350.8,2350.4,4.25457]
[1727947599049,4.2539,2350.8,2350.3,11.50928]
[1727947599248,5.01399331,2351.4,2349.7,3.0]
[1727947599453,4.25368,2351.0,2350.4,4.25442]
[1727947599693,4.25368,2351.0,2350.5,4.25439]
[1727947599909,4.25368,2351.0,2349.9,4.25536]
[1727947599910,4.25337,2351.1,2350.7,4.25391]
[1727947600066,6.575643,2351.5,2350.3,4.25477]
[1727947600268,8.01399331,2352.0,2350.8,4.25376]
[1727947600269,4.25297,2351.3,2350.8,4.25376]
[1727947600455,4.2537,2350.9,2350.5,4.25439]
[1727947600656,4.25389,2350.8,2350.4,4.25456]
[1727947600867,4.2537,2350.9,2350.5,4.25429]
[1727947601075,8.50728,2351.0,2350.5,4.25429]
[1727947601510,4.25377,2350.9,2350.4,4.25456]
[1727947601796,4.25389,2350.8,2350.4,4.25456]
[1727947602000,4.25389,2350.8,2350.2,4.25483]
[1727947602001,4.25406,2350.7,2350.3,4.25475]
[1727947603206,4.25424,2350.6,2350.2,4.25483]
[1727947603575,4.25451,2350.5,2350.1,4.25506]
[1727947603903,4.25451,2350.5,2350.0,8.5104]
[1727947604120,4.25451,2350.5,2349.8,3.0]
[1727947604256,4.25474,2350.4,2349.9,4.25549]
[1727947604697,4.25473,2350.4,2349.9,4.25542]
[1727947604909,4.25436,2350.6,2350.0,4.25531]
[1727947605128,4.25444,2350.5,2350.1,4.25513]
[1727947605578,4.25461,2350.4,2350.0,4.25521]
[1727947605776,4.25444,2350.5,2350.0,4.25521]
[1727947605980,4.25465,2350.4,2350.0,4.25521]
[1727947606187,4.25465,2350.4,2350.0,4.25518]
[1727947606413,4.25423,2350.6,2350.0,4.25518]
[1727947606618,4.25443,2350.5,2350.1,4.25512]
[1727947607227,8.50902,2350.5,2350.0,8.51039]
[1727947607787,4.25443,2350.5,2350.0,4.25518]
[1727947608026,4.25459,2350.5,2350.0,4.25518]
[1727947608321,4.25469,2350.4,2350.0,4.25518]
[1727947608834,4.25469,2350.4,2350.0,8.51039]
[1727947608995,4.25489,2350.3,2349.8,4.25552]
[1727947609183,4.25482,2350.3,2349.8,4.25552]
[1727947609383,4.25482,2350.3,2349.9,4.25545]
[1727947610131,4.25456,2350.5,2349.9,4.25545]
[1727947610287,4.25466,2350.4,2349.9,4.25534]
[1727947610488,4.25479,2350.3,2349.9,4.25534]
[1727947611033,4.25466,2350.4,2349.9,4.25534]
[1727947611335,4.25466,2350.4,2349.9,4.25541]
[1727947611497,4.25503,2350.2,2349.8,4.25565]
[1727947613521,4.25481,2350.3,2349.8,4.25565]
[1727947613723,4.25496,2350.2,2349.8,4.25565]
[1727947613924,4.25496,2350.2,2349.5,3.0]
[1727947613925,4.25451,2350.5,2349.5,7.2562]
[1727947614252,4.25451,2350.5,2350.1,4.25503]
[1727947615360,8.50904,2350.5,2350.1,4.25503]
[1727947615559,4.2546,2350.4,2350.0,4.25527]
[1727947615721,4.25482,2350.3,2349.9,7.25532]
[1727947616070,4.2546,2350.4,2349.6,4.25597]
[1727947616071,4.25546,2350.0,2349.6,4.25597]
[1727947617282,4.25551,2349.9,2349.5,4.2562]
[1727947617431,4.25551,2349.9,2349.5,4.25479399]
[1727947618283,4.25561,2349.9,2349.4,4.2563]
[1727947618448,4.25561,2349.9,2349.5,4.25614]
[1727947618646,4.25561,2349.9,2349.4,4.2563]
[1727947618647,4.25568,2349.8,2349.4,4.2563]
[1727947619376,4.25599,2349.7,2349.3,4.25656]
[1727947619576,4.25514,2350.1,2349.3,4.25656]
[1727947619577,4.25577,2349.8,2349.3,4.25656]
[1727947619951,4.25614,2349.6,2349.2,4.25676]
[1727947620167,4.07643051,2349.8,2349.1,4.25683]
[1727947620371,6.575643,2350.1,2349.2,8.33319051]
[1727947620686,6.575643,2350.7,2350.0,8.33162051]
[1727947620835,1.78142626,2351.1,2349.3,0.57608569]
[1727947620836,4.2536,2351.0,2350.6,4.2542]
[1727947621035,4.2536,2351.0,2350.5,4.25433]
[1727947621401,1.78142626,2351.6,2350.2,4.07643051]
[1727947621402,5.85785677,2351.6,2350.2,4.07643051]
[1727947621690,4.07643051,2351.3,2350.5,3.0]
[1727947621900,8.35706926,2351.9,2350.5,3.0]
[1727947621901,4.25399,2350.8,2350.5,3.0]
[1727947622039,4.25398,2350.8,2350.5,3.0]
[1727947622244,4.25398,2350.8,2350.3,4.25474]
[1727947622493,4.25365,2351.0,2350.3,4.25474]
[1727947622781,4.25333,2351.1,2350.6,4.25414]
[1727947623096,4.25362,2351.0,2350.5,4.2544]
[1727947623831,7.25271,2351.5,2350.1,4.25506]
[1727947623832,4.25338,2351.1,2350.1,4.25506]
[1727947624110,4.25338,2351.1,2350.1,7.255]
[1727947624111,4.25405,2350.7,2350.1,7.255]
[1727947624316,4.25361,2351.0,2350.4,4.25459]
[1727947624517,8.50585,2351.4,2350.7,4.25401]
[1727947624809,4.25269,2351.5,2350.9,4.25361]
[1727947625015,4.25292,2351.4,2350.9,4.25361]
[1727947625210,4.25306,2351.3,2350.9,4.25361]
[1727947625418,4.25292,2351.4,2351.0,4.25346]
[1727947625584,4.25245,2351.6,2351.1,4.2533]
[1727947625782,4.25289,2351.4,2350.9,4.2536]
[1727947625998,9.79563976,2352.0,2350.9,8.50716]
[1727947626195,4.25278,2351.5,2351.0,4.25346]
[1727947626419,4.25281,2351.4,2351.0,4.25346]
[1727947626890,4.25281,2351.4,2350.9,4.25356]
[1727947627240,4.25304,2351.3,2350.7,4.25394]
[1727947627379,1.78142626,2351.8,2350.9,4.25357]
[1727947627380,4.25287,2351.4,2350.9,4.25357]
[1727947627586,4.25287,2351.4,2351.0,4.25342]
[1727947627787,4.25287,2351.4,2350.3,3.0]
[1727947628130,3.0,2351.6,2350.5,4.25428]
[1727947628428,8.50692,2351.1,2350.6,4.2542]
[1727947628631,4.25359,2351.0,2350.5,8.50882]
[1727947628981,4.25346,2351.1,2350.7,4.25405]
[1727947629536,6.79563976,2351.7,2350.3,3.0]
[1727947629755,8.50711,2351.0,2350.5,4.2543]
[1727947630039,4.25387,2350.8,2350.4,4.25459]
[1727947630254,4.25387,2350.8,2350.3,4.25469]
[1727947630255,4.25405,2350.7,2350.3,4.25469]
[1727947630583,4.25361,2351.0,2350.1,4.25496]
[1727947630783,4.25432,2350.6,2350.1,4.25499]
[1727947631027,4.25364,2351.0,2350.0,4.25528]
[1727947631195,8.35706926,2351.3,2350.6,8.5083]
[1727947631196,4.25335,2351.1,2350.6,8.5083]
[1727947631400,4.25335,2351.1,2350.6,8.50822]
[1727947631595,4.25335,2351.1,2350.6,4.25407]
[1727947631995,4.25335,2351.1,2350.7,4.25401]
[1727947632200,4.25316,2351.2,2350.7,4.25401]
[1727947632739,4.25333,2351.1,2350.7,4.25401]
[1727947633349,4.25365,2351.0,2350.6,4.2542]
[1727947633550,4.25365,2351.0,2350.5,4.25433]
[1727947633767,4.25365,2351.0,2349.9,5.0142135]
[1727947633768,4.25418,2350.7,2350.2,4.25478]
[1727947633906,4.2545,2350.5,2350.1,4.25513]
[1727947634602,1.78142626,2351.1,2349.6,5.0142135]
[1727947634807,4.25515,2350.1,2349.2,5.58691101]
[1727947635155,4.25499,2350.2,2349.7,4.25578]
[1727947635366,6.575643,2350.5,2349.5,4.25609]
[1727947635544,4.25539,2350.0,2349.5,4.25609]
[1727947635726,8.51081,2350.0,2349.5,4.25609]
[1727947635918,8.51087,2350.0,2349.5,4.25609]
[1727947636118,4.25552,2349.9,2349.5,3.0]
[1727947636316,4.25552,2349.9,2349.5,7.25621]
[1727947636551,4.25519,2350.1,2349.6,4.25591]
[1727947636865,4.25505,2350.2,2349.7,4.25576]
[1727947637031,10.830103,2350.5,2349.2,4.33016101]
[1727947637365,9.79563976,2350.8,2349.9,4.2554]
[1727947637366,8.50944,2350.4,2349.9,4.2554]
[1727947637675,4.25472,2350.4,2350.0,4.25531]
[1727947637813,4.25472,2350.4,2349.9,4.25537]
[1727947638015,4.2545,2350.5,2350.0,4.25521]
[1727947638214,4.2545,2350.5,2350.1,4.25505]
[1727947638415,8.50908,2350.5,2350.0,4.25529]
[1727947638616,4.2545,2350.5,2350.0,8.51047]
[1727947638910,8.50902,2350.5,2350.0,8.51047]
[1727947639060,4.2548,2350.3,2349.9,4.25544]
[1727947639426,4.25472,2350.4,2349.9,8.51084]
[1727947639634,4.25472,2350.4,2350.0,4.2553]
[1727947639863,4.25457,2350.5,2350.0,4.2553]
[1727947640041,8.50984,2350.3,2349.8,7.25556]
[1727947640217,4.2549,2350.3,2349.8,7.25556]
[1727947640770,4.25479,2350.3,2349.9,4.25549]
[1727947640935,4.25497,2350.2,2349.8,7.25556]
[1727947641464,4.25338571,2350.3,2349.8,7.25553]
[1727947641677,4.25486,2350.3,2349.9,3.0]
[1727947641824,4.25496,2350.2,2349.9,3.0]
[1727947642354,4.25522,2350.1,2349.7,4.25582]
[1727947643053,4.25442,2350.5,2349.5,8.51217]
[1727947643261,4.25541,2350.0,2349.5,8.51217]
[1727947643577,4.25541,2350.0,2349.6,4.256]
[1727947645655,4.25494,2350.3,2349.7,4.25585]
[1727947645834,4.25451,2350.5,2350.1,4.25506]
[1727947646063,6.575643,2350.8,2349.9,4.25536]
[1727947646228,4.25509,2350.2,2349.8,4.25567]
[1727947646579,4.25509,2350.2,2349.7,4.25584]
[1727947646580,4.25515,2350.1,2349.7,4.25584]
[1727947646880,6.03562626,2350.7,2349.5,3.0]
[1727947647172,4.25572,2349.8,2349.4,3.0]
[1727947647489,4.25572,2349.8,2349.3,8.51286]
[1727947648067,4.25587,2349.7,2349.3,4.25641]
[1727947648432,6.575643,2350.3,2349.3,4.25641]
[1727947648674,4.25553,2349.9,2349.5,4.25609]
[1727947648882,10.830453,2350.3,2349.9,4.25549]
[1727947649167,6.03520626,2350.9,2350.4,4.25458]
[1727947649369,8.50757,2350.9,2350.4,4.2545]
[1727947649573,4.25378,2350.9,2350.5,4.25436]
[1727947649775,4.25377,2350.9,2350.5,4.25436]
[1727947650131,4.25317,2351.2,2350.4,4.2545]
[1727947650472,4.25379,2350.9,2350.4,8.50899]
[1727947650640,4.25379,2350.9,2350.4,4.25449]
[1727947650828,4.25358,2351.0,2350.6,4.25422]
[1727947651029,4.25327,2351.2,2350.6,4.25422]
[1727947651355,1.78142626,2351.5,2350.8,4.25386]
[1727947651666,1.78142626,2351.5,2350.3,3.0]
[1727947651667,4.69784554,2351.6,2351.1,4.25316]
[1727947651872,4.25245,2351.6,2351.1,8.50638]
[1727947652168,4.25245,2351.6,2351.1,4.25316]
[1727947652874,4.25245,2351.6,2350.8,3.0]
[1727947652875,4.25242,2351.7,2350.8,3.0]
[1727947653076,4.25174,2352.0,2350.8,3.0]
[1727947653226,4.25174,2352.0,2350.5,5.0142135]
[1727947653227,1.78142626,2352.0,2351.0,4.25339]
[1727947653431,4.2526,2351.5,2351.1,3.0]
[1727947653946,4.25247,2351.6,2351.1,3.0]
[1727947654164,4.2531,2351.3,2350.8,4.25377]
[1727947654350,4.2531,2351.3,2350.9,3.0]
[1727947654351,4.25315,2351.2,2350.9,3.0]
[1727947655237,4.2531,2351.3,2350.9,7.2536]
[1727947655437,4.2528,2351.4,2351.0,4.2535]
[1727947655662,4.25275,2351.5,2351.0,4.2535]
[1727947655970,1.78142626,2351.9,2351.3,4.25286]
[1727947655971,4.25233,2351.7,2351.3,4.25286]
[1727947656682,4.25203,2351.9,2351.1,4.25325]
[1727947656683,4.25273,2351.5,2351.1,4.25325]
[1727947657173,4.25226,2351.7,2351.2,4.25313]
[1727947657634,4.25226,2351.7,2351.3,4.25296]
[1727947658410,4.25243,2351.6,2351.0,4.25339]
[1727947658617,4.25243,2351.6,2351.2,4.25306]
[1727947658911,8.50502,2351.6,2351.1,4.25322]
[1727947659097,4.25243,2351.6,2351.1,4.2532]
[1727947659296,4.25292,2351.4,2350.9,4.2536]
[1727947659610,4.25265,2351.5,2351.0,4.25349]
[1727947659816,13.81322128,2352.1,2351.3,4.25286]
[1727947659817,4.25199,2351.9,2351.3,4.25286]
[1727947660314,4.25199,2351.9,2351.4,4.25269]
[1727947660315,4.2521,2351.8,2351.4,4.25269]
[1727947660529,4.2521,2351.8,2351.3,4.25286]
[1727947660809,4.2521,2351.8,2351.4,4.25273]
[1727947661022,8.50392,2351.9,2351.4,4.25266]
[1727947661168,4.25195,2351.9,2351.5,4.25256]
[1727947661584,4.25208,2351.8,2351.4,4.25266]
[1727947662013,4.25226,2351.7,2351.3,4.25294]
[1727947662211,4.25208,2351.8,2351.4,4.25276]
[1727947663327,4.25226,2351.7,2351.3,4.25294]
[1727947663623,4.25253,2351.6,2351.1,4.25321]
[1727947663830,4.2527,2351.5,2351.2,3.0]
[1727947664136,4.2527,2351.5,2351.1,4.25321]
[1727947664137,4.25093,2352.5,2351.9,4.25181]
[1727947664305,4.25093,2352.5,2352.0,4.2516]
[1727947664795,4.25091,2352.5,2352.0,4.2516]
[1727947665130,4.25113,2352.4,2351.9,4.25186]
[1727947665843,4.25086,2352.5,2351.9,8.50365]
[1727947665981,4.25086,2352.5,2352.0,4.25161]
[1727947666530,4.25053,2352.7,2352.1,4.2515]
[1727947666531,4.25062,2352.6,2352.1,4.2515]
[1727947666683,4.25053,2352.7,2351.8,4.25193]
[1727947666684,4.25124,2352.3,2351.8,4.25193]
[1727947666880,4.25124,2352.3,2351.6,7.25231]
[1727947666881,4.25157,2352.1,2351.6,7.25231]
[1727947667084,4.25157,2352.1,2351.6,11.50464]
[1727947667333,8.5032,2352.1,2351.6,4.25231]
[1727947667539,4.25157,2352.1,2351.6,8.50465]
[1727947668615,4.25157,2352.1,2351.7,4.25223]
[1727947669016,8.50321,2352.1,2351.6,4.25231]
[1727947669217,4.25157,2352.1,2351.7,4.25223]
[1727947669433,4.25157,2352.1,2351.6,4.25231]
[1727947669642,4.25131,2352.3,2351.5,4.25255]
[1727947669804,4.25131,2352.3,2351.9,4.25179]
[1727947670007,4.25131,2352.3,2351.9,8.50358]
[1727947670322,4.25131,2352.3,2351.9,4.25179]
[1727947671090,4.25144,2352.2,2351.8,4.25201]
[1727947673498,4.25099,2352.4,2352.0,4.25168]
[1727947673696,4.25128,2352.3,2351.9,4.2518]
[1727947674038,8.50255,2352.3,2351.9,4.2518]
[1727947674252,14.42616763,2353.4,2351.9,5.0142135]
[1727947674253,6.575643,2353.1,2351.9,5.0142135]
[1727947674541,6.575643,2353.4,2352.3,0.55]
[1727947674706,4.24961,2353.2,2352.7,4.25034]
[1727947675319,4.24927,2353.4,2352.9,4.25007]